[Event "Titled Tuesday Blitz August 15 Late 2023"]
[White "Kochiev, Ivan"]
[Black "Harriott, Tyrell"]
[WhiteFideId "2917890"]
[BlackFideId "2086484"]
[WhiteElo "2582"]
[BlackElo "2449"]
[Result "1-0"]
[Round "8"]
[TimeControl "180+1"]
[Date "2023.08.15"]
[WhiteClock "0:00:02"]
[BlackClock "0:00:21"]
[Board "51"]

1. e4 {[%clk 0:02:58]}  d5 {[%clk 0:02:56]} 2. exd5 {[%clk 0:02:58]}  Nf6 {[%clk 0:02:56]} 3. d4 {[%clk 0:02:58]}  Qxd5 {[%clk 0:02:56]} 4. Nf3 {[%clk 0:02:57]}  Bg4 {[%clk 0:02:55]} 5. Be2 {[%clk 0:02:57]}  Nc6 {[%clk 0:02:55]} 6. c4 {[%clk 0:02:57]}  Qh5 {[%clk 0:02:54]} 7. Be3 {[%clk 0:02:55]}  O-O-O {[%clk 0:02:54]} 8. Nc3 {[%clk 0:02:56]}  e5 {[%clk 0:02:53]} 9. d5 {[%clk 0:02:56]}  Bb4 {[%clk 0:02:43]} 10. Qa4 {[%clk 0:02:34]}  Nd4 {[%clk 0:01:53]} 11. Bxd4 {[%clk 0:00:43]}  exd4 {[%clk 0:01:51]} 12. Qxb4 {[%clk 0:00:43]}  dxc3 {[%clk 0:01:48]} 13. O-O {[%clk 0:00:27]}  Rhe8 {[%clk 0:01:44]} 14. Rfe1 {[%clk 0:00:25]}  c2 {[%clk 0:01:11]} 15. Qc3 {[%clk 0:00:19]}  Bf5 {[%clk 0:01:06]} 16. Nd4 {[%clk 0:00:12]}  Rxe2 {[%clk 0:00:54]} 17. Rxe2 {[%clk 0:00:08]}  Bg6 {[%clk 0:00:43]} 18. Rxc2 {[%clk 0:00:03]}  Bxc2 {[%clk 0:00:41]} 19. Qxc2 {[%clk 0:00:04]}  Ng4 {[%clk 0:00:40]} 20. h3 {[%clk 0:00:04]}  Nh6 {[%clk 0:00:39]} 21. Re1 {[%clk 0:00:03]}  f5 {[%clk 0:00:38]} 22. Ne6 {[%clk 0:00:02]}  Rg8 {[%clk 0:00:35]} 23. Qa4 {[%clk 0:00:03]}  Qf7 {[%clk 0:00:35]} 24. Qxa7 {[%clk 0:00:02]}  Kd7 {[%clk 0:00:35]} 25. Nc5+ {[%clk 0:00:01]}  Kd6 {[%clk 0:00:36]} 26. Nxb7+ {[%clk 0:00:02]}  Kd7 {[%clk 0:00:36]} 27. Qa4+ {[%clk 0:00:02]}  Kc8 {[%clk 0:00:36]} 28. Qc6 {[%clk 0:00:02]}  Kb8 {[%clk 0:00:32]} 29. Nc5 {[%clk 0:00:02]}  Kc8 {[%clk 0:00:21]} 30. Qa8# {[%clk 0:00:02]} 1-0


[Site "https://www.chess.com"]

[Event "Titled Tuesday Blitz August 15 Late 2023"]
[White "Chor, Kevin"]
[Black "Todorovic, Bojan"]
[WhiteFideId "2090740"]
[BlackFideId "917087"]
[WhiteElo "2576"]
[BlackElo "2429"]
[Result "0-1"]
[Round "8"]
[TimeControl "180+1"]
[Date "2023.08.15"]
[WhiteClock "0:00:05"]
[BlackClock "0:00:09"]
[Board "54"]

1. d4 {[%clk 0:03:00]}  g6 {[%clk 0:02:59]} 2. c4 {[%clk 0:03:00]}  Bg7 {[%clk 0:02:58]} 3. Nf3 {[%clk 0:03:01]}  Nf6 {[%clk 0:02:55]} 4. Nc3 {[%clk 0:03:00]}  O-O {[%clk 0:02:54]} 5. e4 {[%clk 0:02:54]}  c5 {[%clk 0:02:53]} 6. d5 {[%clk 0:02:50]}  d6 {[%clk 0:02:52]} 7. Be2 {[%clk 0:02:49]}  e6 {[%clk 0:02:52]} 8. O-O {[%clk 0:02:47]}  exd5 {[%clk 0:02:50]} 9. cxd5 {[%clk 0:02:46]}  a6 {[%clk 0:02:49]} 10. a4 {[%clk 0:02:44]}  Bg4 {[%clk 0:02:44]} 11. Nd2 {[%clk 0:02:32]}  Bxe2 {[%clk 0:02:43]} 12. Qxe2 {[%clk 0:02:33]}  Re8 {[%clk 0:02:43]} 13. Nc4 {[%clk 0:02:24]}  Bf8 {[%clk 0:01:27]} 14. Bf4 {[%clk 0:02:14]}  Nh5 {[%clk 0:01:25]} 15. Be3 {[%clk 0:02:01]}  Nd7 {[%clk 0:01:24]} 16. a5 {[%clk 0:01:50]}  b5 {[%clk 0:01:20]} 17. axb6 {[%clk 0:01:48]}  Nxb6 {[%clk 0:01:20]} 18. Na5 {[%clk 0:01:48]}  Qf6 {[%clk 0:01:01]} 19. f4 {[%clk 0:01:34]}  Qh4 {[%clk 0:00:36]} 20. g3 {[%clk 0:01:09]}  Qe7 {[%clk 0:00:27]} 21. Nc6 {[%clk 0:01:08]}  Qb7 {[%clk 0:00:26]} 22. f5 {[%clk 0:00:52]}  Bg7 {[%clk 0:00:25]} 23. fxg6 {[%clk 0:00:45]}  hxg6 {[%clk 0:00:24]} 24. Qg4 {[%clk 0:00:40]}  Nc4 {[%clk 0:00:22]} 25. Bg5 {[%clk 0:00:25]}  Qxb2 {[%clk 0:00:17]} 26. Ne2 {[%clk 0:00:25]}  Ne5 {[%clk 0:00:14]} 27. Nxe5 {[%clk 0:00:19]}  Qxe5 {[%clk 0:00:13]} 28. Nf4 {[%clk 0:00:12]}  Nxf4 {[%clk 0:00:11]} 29. Bxf4 {[%clk 0:00:13]}  Qxe4 {[%clk 0:00:11]} 30. h4 {[%clk 0:00:10]}  Bd4+ {[%clk 0:00:08]} 31. Kh2 {[%clk 0:00:07]}  Qe2+ {[%clk 0:00:08]} 32. Qxe2 {[%clk 0:00:06]}  Rxe2+ {[%clk 0:00:09]} 33. Kh3 {[%clk 0:00:07]}  Bxa1 {[%clk 0:00:07]} 34. Rxa1 {[%clk 0:00:08]}  a5 {[%clk 0:00:08]} 35. Bxd6 {[%clk 0:00:08]}  Rd2 {[%clk 0:00:08]} 36. Bxc5 {[%clk 0:00:08]}  Rxd5 {[%clk 0:00:08]} 37. Be3 {[%clk 0:00:08]}  a4 {[%clk 0:00:08]} 38. g4 {[%clk 0:00:05]}  Rd3 {[%clk 0:00:09]} 0-1


[Site "https://www.chess.com"]

[Event "Titled Tuesday Blitz August 15 Late 2023"]
[White "Balla, Tamas-Kristof"]
[Black "maksimys18"]
[WhiteFideId "1208497"]
[WhiteElo "2422"]
[BlackElo "2563"]
[Result "1-0"]
[Round "8"]
[TimeControl "180+1"]
[Date "2023.08.15"]
[WhiteClock "0:00:08"]
[BlackClock "0:00:09"]
[Board "55"]

1. e4 {[%clk 0:03:00]}  e6 {[%clk 0:03:00]} 2. d4 {[%clk 0:03:00]}  d5 {[%clk 0:03:01]} 3. Nd2 {[%clk 0:03:00]}  Nf6 {[%clk 0:03:00]} 4. e5 {[%clk 0:03:00]}  Nfd7 {[%clk 0:03:00]} 5. Bd3 {[%clk 0:02:59]}  c5 {[%clk 0:03:00]} 6. c3 {[%clk 0:02:59]}  Nc6 {[%clk 0:02:57]} 7. Ne2 {[%clk 0:02:59]}  cxd4 {[%clk 0:02:57]} 8. cxd4 {[%clk 0:03:00]}  f6 {[%clk 0:02:57]} 9. exf6 {[%clk 0:03:00]}  Nxf6 {[%clk 0:02:57]} 10. Nf3 {[%clk 0:03:00]}  Bd6 {[%clk 0:02:57]} 11. O-O {[%clk 0:03:00]}  Qc7 {[%clk 0:02:58]} 12. h3 {[%clk 0:02:59]}  O-O {[%clk 0:02:57]} 13. Bg5 {[%clk 0:02:59]}  Bd7 {[%clk 0:02:57]} 14. Nc3 {[%clk 0:03:00]}  a6 {[%clk 0:02:57]} 15. a3 {[%clk 0:02:58]}  Rae8 {[%clk 0:02:55]} 16. Rc1 {[%clk 0:02:58]}  Qb8 {[%clk 0:02:55]} 17. Bb1 {[%clk 0:02:52]}  h6 {[%clk 0:02:53]} 18. Bxf6 {[%clk 0:02:37]}  Rxf6 {[%clk 0:02:53]} 19. Qd3 {[%clk 0:02:37]}  Bf4 {[%clk 0:02:45]} 20. Qh7+ {[%clk 0:02:30]}  Kf7 {[%clk 0:02:42]} 21. Rce1 {[%clk 0:02:26]}  Rh8 {[%clk 0:02:24]} 22. Qd3 {[%clk 0:02:25]}  Ne7 {[%clk 0:02:11]} 23. Ne5+ {[%clk 0:02:02]}  Bxe5 {[%clk 0:02:08]} 24. dxe5 {[%clk 0:02:03]}  Rg6 {[%clk 0:02:01]} 25. Qf3+ {[%clk 0:02:00]}  Kg8 {[%clk 0:01:49]} 26. Bxg6 {[%clk 0:01:59]}  Nxg6 {[%clk 0:01:49]} 27. Nxd5 {[%clk 0:01:44]}  Kh7 {[%clk 0:01:29]} 28. Nc3 {[%clk 0:01:12]}  Rf8 {[%clk 0:01:27]} 29. Qe4 {[%clk 0:01:11]}  Bc6 {[%clk 0:01:24]} 30. Qc2 {[%clk 0:01:09]}  Rf5 {[%clk 0:01:21]} 31. Re3 {[%clk 0:00:51]}  Qf8 {[%clk 0:01:02]} 32. Rg3 {[%clk 0:00:44]}  Nf4 {[%clk 0:00:59]} 33. Ne4 {[%clk 0:00:38]}  h5 {[%clk 0:00:45]} 34. Nd6 {[%clk 0:00:37]}  h4 {[%clk 0:00:38]} 35. Rg4 {[%clk 0:00:35]}  g5 {[%clk 0:00:19]} 36. Nxf5 {[%clk 0:00:33]}  exf5 {[%clk 0:00:18]} 37. Rxg5 {[%clk 0:00:34]}  Be4 {[%clk 0:00:14]} 38. Qc7+ {[%clk 0:00:32]}  Kh6 {[%clk 0:00:14]} 39. f3 {[%clk 0:00:15]}  Bd3 {[%clk 0:00:07]} 40. Qb6+ {[%clk 0:00:12]}  Kxg5 {[%clk 0:00:06]} 41. Rd1 {[%clk 0:00:07]}  Qg7 {[%clk 0:00:05]} 42. Qe3 {[%clk 0:00:07]}  Qd7 {[%clk 0:00:03]} 43. e6 {[%clk 0:00:06]}  Qxe6 {[%clk 0:00:02]} 44. Rxd3 {[%clk 0:00:06]}  Qc6 {[%clk 0:00:01]} 45. Rd4 {[%clk 0:00:05]}  Qc7 {[%clk 0:00:01]} 46. Rb4 {[%clk 0:00:01]}  b5 {[%clk 0:00:01]} 47. Rd4 {[%clk 0:00:01]}  a5 {[%clk 0:00:01]} 48. Kh2 {[%clk 0:00:02]}  b4 {[%clk 0:00:01]} 49. axb4 {[%clk 0:00:02]}  axb4 {[%clk 0:00:01]} 50. Rxb4 {[%clk 0:00:03]}  Qd6 {[%clk 0:00:01]} 51. Rxf4 {[%clk 0:00:03]}  Qxf4+ {[%clk 0:00:01]} 52. Qxf4+ {[%clk 0:00:04]}  Kxf4 {[%clk 0:00:02]} 53. Kg1 {[%clk 0:00:05]}  Kg3 {[%clk 0:00:02]} 54. b4 {[%clk 0:00:05]}  f4 {[%clk 0:00:03]} 55. Kf1 {[%clk 0:00:04]}  Kh2 {[%clk 0:00:03]} 56. b5 {[%clk 0:00:04]}  Kg3 {[%clk 0:00:03]} 57. b6 {[%clk 0:00:05]}  Kh2 {[%clk 0:00:04]} 58. b7 {[%clk 0:00:06]}  Kg3 {[%clk 0:00:04]} 59. b8=Q {[%clk 0:00:06]}  Kh2 {[%clk 0:00:05]} 60. Qxf4+ {[%clk 0:00:07]}  Kh1 {[%clk 0:00:06]} 61. Qxh4 {[%clk 0:00:07]}  Kh2 {[%clk 0:00:07]} 62. g4 {[%clk 0:00:07]}  Kh1 {[%clk 0:00:07]} 63. Qg5 {[%clk 0:00:07]}  Kh2 {[%clk 0:00:08]} 64. Qd2+ {[%clk 0:00:07]}  Kh1 {[%clk 0:00:09]} 65. Qg2# {[%clk 0:00:08]} 1-0


[Site "https://www.chess.com"]

[Event "Titled Tuesday Blitz August 15 Late 2023"]
[White "Daianu, Cristian-Clement"]
[Black "Grossboss19"]
[WhiteFideId "1208926"]
[WhiteElo "2393"]
[BlackElo "2559"]
[Result "1-0"]
[Round "8"]
[TimeControl "180+1"]
[Date "2023.08.15"]
[WhiteClock "0:00:23"]
[BlackClock "0:00:12"]
[Board "57"]

1. e4 {[%clk 0:03:00]}  c5 {[%clk 0:02:56]} 2. Nf3 {[%clk 0:03:00]}  Nc6 {[%clk 0:02:55]} 3. d4 {[%clk 0:03:01]}  cxd4 {[%clk 0:02:55]} 4. Nxd4 {[%clk 0:03:02]}  e6 {[%clk 0:02:55]} 5. Nc3 {[%clk 0:03:02]}  Qc7 {[%clk 0:02:55]} 6. Be2 {[%clk 0:03:03]}  a6 {[%clk 0:02:54]} 7. O-O {[%clk 0:03:03]}  Nf6 {[%clk 0:02:55]} 8. Be3 {[%clk 0:03:03]}  Be7 {[%clk 0:02:55]} 9. Kh1 {[%clk 0:03:03]}  O-O {[%clk 0:02:55]} 10. f4 {[%clk 0:03:04]}  d6 {[%clk 0:02:55]} 11. Qe1 {[%clk 0:03:04]}  Bd7 {[%clk 0:02:52]} 12. Qg3 {[%clk 0:03:03]}  Nxd4 {[%clk 0:02:36]} 13. Bxd4 {[%clk 0:03:04]}  Bc6 {[%clk 0:02:33]} 14. Bd3 {[%clk 0:03:04]}  Rfe8 {[%clk 0:02:24]} 15. Rae1 {[%clk 0:03:03]}  Rad8 {[%clk 0:02:20]} 16. e5 {[%clk 0:02:40]}  Nh5 {[%clk 0:02:19]} 17. Qh3 {[%clk 0:02:22]}  g6 {[%clk 0:02:17]} 18. f5 {[%clk 0:02:18]}  exf5 {[%clk 0:02:13]} 19. Rxf5 {[%clk 0:02:14]}  dxe5 {[%clk 0:01:51]} 20. Rxh5 {[%clk 0:02:12]}  exd4 {[%clk 0:01:48]} 21. Rxh7 {[%clk 0:02:10]}  Bf6 {[%clk 0:01:48]} 22. Rf1 {[%clk 0:02:05]}  Bg7 {[%clk 0:01:32]} 23. Ne2 {[%clk 0:01:43]}  Re3 {[%clk 0:01:28]} 24. Qh4 {[%clk 0:01:41]}  Qe7 {[%clk 0:01:10]} 25. Ng3 {[%clk 0:01:17]}  Qxh4 {[%clk 0:01:01]} 26. Rxh4 {[%clk 0:01:18]}  f5 {[%clk 0:00:58]} 27. Ne2 {[%clk 0:00:44]}  Be5 {[%clk 0:00:53]} 28. Nf4 {[%clk 0:00:38]}  g5 {[%clk 0:00:38]} 29. Bc4+ {[%clk 0:00:37]}  Kg7 {[%clk 0:00:33]} 30. Ne6+ {[%clk 0:00:36]}  Kg6 {[%clk 0:00:33]} 31. Nxd8 {[%clk 0:00:24]}  gxh4 {[%clk 0:00:33]} 32. Nxc6 {[%clk 0:00:25]}  bxc6 {[%clk 0:00:33]} 33. h3 {[%clk 0:00:20]}  Kg5 {[%clk 0:00:29]} 34. Bxa6 {[%clk 0:00:20]}  Bg3 {[%clk 0:00:28]} 35. Bd3 {[%clk 0:00:20]}  f4 {[%clk 0:00:28]} 36. a4 {[%clk 0:00:20]}  Re5 {[%clk 0:00:27]} 37. b4 {[%clk 0:00:19]}  Be1 {[%clk 0:00:26]} 38. b5 {[%clk 0:00:19]}  cxb5 {[%clk 0:00:26]} 39. axb5 {[%clk 0:00:20]}  Ba5 {[%clk 0:00:25]} 40. Ra1 {[%clk 0:00:19]}  Re1+ {[%clk 0:00:22]} 41. Rxe1 {[%clk 0:00:18]}  Bxe1 {[%clk 0:00:23]} 42. b6 {[%clk 0:00:19]}  Ba5 {[%clk 0:00:23]} 43. b7 {[%clk 0:00:20]}  Bc7 {[%clk 0:00:24]} 44. Kg1 {[%clk 0:00:20]}  f3 {[%clk 0:00:19]} 45. gxf3 {[%clk 0:00:20]}  Kf4 {[%clk 0:00:20]} 46. Kf2 {[%clk 0:00:21]}  Bb8 {[%clk 0:00:20]} 47. Ke2 {[%clk 0:00:21]}  Kg3 {[%clk 0:00:20]} 48. Bf5 {[%clk 0:00:21]}  Kf4 {[%clk 0:00:19]} 49. Bg4 {[%clk 0:00:22]}  Ba7 {[%clk 0:00:19]} 50. Kd3 {[%clk 0:00:23]}  Ke5 {[%clk 0:00:20]} 51. Kc4 {[%clk 0:00:22]}  Bb8 {[%clk 0:00:19]} 52. Kb5 {[%clk 0:00:22]}  Kd6 {[%clk 0:00:19]} 53. f4 {[%clk 0:00:22]}  Kd5 {[%clk 0:00:19]} 54. f5 {[%clk 0:00:23]}  Ke5 {[%clk 0:00:17]} 55. Kc6 {[%clk 0:00:23]}  Kf6 {[%clk 0:00:14]} 56. Kd7 {[%clk 0:00:23]}  Ke5 {[%clk 0:00:14]} 57. Kc8 {[%clk 0:00:24]}  Ba7 {[%clk 0:00:14]} 58. b8=Q+ {[%clk 0:00:23]}  Bxb8 {[%clk 0:00:14]} 59. Kxb8 {[%clk 0:00:24]}  d3 {[%clk 0:00:14]} 60. cxd3 {[%clk 0:00:23]}  Kd4 {[%clk 0:00:12]} 61. f6 {[%clk 0:00:23]} 1-0


[Site "https://www.chess.com"]

[Event "Titled Tuesday Blitz August 15 Late 2023"]
[White "Francisco Guecamburu, Candela Be"]
[Black "Polaczek, Richard"]
[WhiteFideId "160911"]
[BlackFideId "200026"]
[WhiteElo "2555"]
[BlackElo "2385"]
[Result "1/2-1/2"]
[Round "8"]
[TimeControl "180+1"]
[Date "2023.08.15"]
[WhiteClock "0:00:06"]
[BlackClock "0:00:29"]
[Board "58"]

1. e4 {[%clk 0:03:00]}  Nf6 {[%clk 0:02:58]} 2. e5 {[%clk 0:03:01]}  Nd5 {[%clk 0:02:58]} 3. d4 {[%clk 0:03:01]}  d6 {[%clk 0:02:57]} 4. Nf3 {[%clk 0:03:02]}  g6 {[%clk 0:02:57]} 5. Bc4 {[%clk 0:03:01]}  Nb6 {[%clk 0:02:56]} 6. Bb3 {[%clk 0:03:01]}  Bg7 {[%clk 0:02:56]} 7. Ng5 {[%clk 0:03:02]}  e6 {[%clk 0:02:56]} 8. Qf3 {[%clk 0:03:01]}  Qe7 {[%clk 0:02:55]} 9. Ne4 {[%clk 0:03:02]}  dxe5 {[%clk 0:02:55]} 10. dxe5 {[%clk 0:03:02]}  h6 {[%clk 0:02:48]} 11. Nf6+ {[%clk 0:03:01]}  Kf8 {[%clk 0:02:42]} 12. Qc3 {[%clk 0:03:00]}  Nc6 {[%clk 0:02:37]} 13. Be3 {[%clk 0:02:58]}  Nd7 {[%clk 0:02:27]} 14. Nxd7+ {[%clk 0:02:45]}  Qxd7 {[%clk 0:02:26]} 15. f4 {[%clk 0:02:46]}  Kg8 {[%clk 0:02:21]} 16. Nd2 {[%clk 0:02:45]}  Ne7 {[%clk 0:02:13]} 17. O-O-O {[%clk 0:02:17]}  Nd5 {[%clk 0:02:11]} 18. Qd3 {[%clk 0:02:10]}  b6 {[%clk 0:02:11]} 19. Ne4 {[%clk 0:02:04]}  Bb7 {[%clk 0:02:02]} 20. c4 {[%clk 0:01:59]}  Qc6 {[%clk 0:02:01]} 21. Nc3 {[%clk 0:01:34]}  Nxe3 {[%clk 0:01:54]} 22. Qxe3 {[%clk 0:01:35]}  Qxg2 {[%clk 0:01:52]} 23. Rhg1 {[%clk 0:01:32]}  Qf3 {[%clk 0:01:52]} 24. Qxf3 {[%clk 0:01:28]}  Bxf3 {[%clk 0:01:50]} 25. Rd7 {[%clk 0:01:29]}  Rc8 {[%clk 0:01:47]} 26. Nb5 {[%clk 0:01:15]}  Bc6 {[%clk 0:01:39]} 27. Rxc7 {[%clk 0:01:12]}  Rxc7 {[%clk 0:01:40]} 28. Nxc7 {[%clk 0:01:13]}  Kh7 {[%clk 0:01:40]} 29. Nb5 {[%clk 0:01:06]}  Bxb5 {[%clk 0:01:36]} 30. cxb5 {[%clk 0:01:06]}  g5 {[%clk 0:01:29]} 31. Bc2+ {[%clk 0:01:04]}  Kg8 {[%clk 0:01:27]} 32. fxg5 {[%clk 0:00:47]}  Bxe5 {[%clk 0:01:26]} 33. gxh6+ {[%clk 0:00:45]}  Kf8 {[%clk 0:01:26]} 34. h7 {[%clk 0:00:38]}  f5 {[%clk 0:01:25]} 35. Bb3 {[%clk 0:00:28]}  Rxh7 {[%clk 0:01:21]} 36. Bxe6 {[%clk 0:00:28]}  Rxh2 {[%clk 0:01:20]} 37. Rg8+ {[%clk 0:00:20]}  Ke7 {[%clk 0:01:19]} 38. Bxf5 {[%clk 0:00:20]}  Bxb2+ {[%clk 0:01:17]} 39. Kd1 {[%clk 0:00:17]}  Be5 {[%clk 0:01:16]} 40. Bc2 {[%clk 0:00:11]}  Bf4 {[%clk 0:01:13]} 41. Bb3 {[%clk 0:00:10]}  Rd2+ {[%clk 0:01:05]} 42. Ke1 {[%clk 0:00:10]}  Rd7 {[%clk 0:01:04]} 43. Ke2 {[%clk 0:00:10]}  Rc7 {[%clk 0:01:04]} 44. Kf3 {[%clk 0:00:09]}  Be5 {[%clk 0:01:03]} 45. Ke4 {[%clk 0:00:09]}  Bb2 {[%clk 0:01:02]} 46. Rg6 {[%clk 0:00:07]}  Bc3 {[%clk 0:00:57]} 47. Re6+ {[%clk 0:00:07]}  Kd7 {[%clk 0:00:56]} 48. Rh6 {[%clk 0:00:08]}  Ke7 {[%clk 0:00:55]} 49. Kd5 {[%clk 0:00:06]}  Rc5+ {[%clk 0:00:54]} 50. Ke4 {[%clk 0:00:07]}  Rxb5 {[%clk 0:00:51]} 51. Rh7+ {[%clk 0:00:06]}  Kd6 {[%clk 0:00:50]} 52. Rxa7 {[%clk 0:00:07]}  Re5+ {[%clk 0:00:49]} 53. Kd3 {[%clk 0:00:07]}  Bb4 {[%clk 0:00:47]} 54. Rb7 {[%clk 0:00:05]}  Bc5 {[%clk 0:00:46]} 55. Rh7 {[%clk 0:00:04]}  Re3+ {[%clk 0:00:44]} 56. Kd2 {[%clk 0:00:04]}  Rg3 {[%clk 0:00:43]} 57. Rh6+ {[%clk 0:00:05]}  Ke5 {[%clk 0:00:42]} 58. Rh5+ {[%clk 0:00:05]}  Kd6 {[%clk 0:00:41]} 59. Rh6+ {[%clk 0:00:06]}  Ke5 {[%clk 0:00:41]} 60. Rh5+ {[%clk 0:00:06]}  Kd6 {[%clk 0:00:41]} 61. Rd5+ {[%clk 0:00:07]}  Kc6 {[%clk 0:00:40]} 62. Rf5 {[%clk 0:00:08]}  Kb5 {[%clk 0:00:37]} 63. Rf7 {[%clk 0:00:07]}  Kc6 {[%clk 0:00:36]} 64. Ke2 {[%clk 0:00:07]}  Kd6 {[%clk 0:00:36]} 65. Rf6+ {[%clk 0:00:06]}  Ke5 {[%clk 0:00:35]} 66. Re6+ {[%clk 0:00:07]}  Kd4 {[%clk 0:00:35]} 67. Rf6 {[%clk 0:00:05]}  Re3+ {[%clk 0:00:35]} 68. Kd1 {[%clk 0:00:04]}  Rg3 {[%clk 0:00:34]} 69. Rf4+ {[%clk 0:00:04]}  Kc3 {[%clk 0:00:33]} 70. Rf1 {[%clk 0:00:03]}  Rd3+ {[%clk 0:00:32]} 71. Ke2 {[%clk 0:00:03]}  Rd2+ {[%clk 0:00:31]} 72. Kf3 {[%clk 0:00:04]}  Rd3+ {[%clk 0:00:31]} 73. Ke4 {[%clk 0:00:04]}  Rd4+ {[%clk 0:00:31]} 74. Ke5 {[%clk 0:00:05]}  Rd2 {[%clk 0:00:31]} 75. Rc1+ {[%clk 0:00:05]}  Kb2 {[%clk 0:00:30]} 76. Rc4 {[%clk 0:00:05]}  Ka3 {[%clk 0:00:30]} 77. Ra4+ {[%clk 0:00:05]}  Kb2 {[%clk 0:00:30]} 78. Rc4 {[%clk 0:00:05]}  Ka3 {[%clk 0:00:29]} 79. Ra4+ {[%clk 0:00:06]}  Kb2 {[%clk 0:00:29]} 80. Rc4 {[%clk 0:00:06]} 1/2-1/2


[Site "https://www.chess.com"]

[Event "Titled Tuesday Blitz August 15 Late 2023"]
[White "Dr_Pepper18"]
[Black "D`Arruda, Ricardo D."]
[BlackFideId "100692"]
[WhiteElo "2337"]
[BlackElo "2541"]
[Result "1/2-1/2"]
[Round "8"]
[TimeControl "180+1"]
[Date "2023.08.15"]
[WhiteClock "0:00:12"]
[BlackClock "0:00:46"]
[Board "60"]

1. d4 {[%clk 0:02:59]}  Nf6 {[%clk 0:02:59]} 2. c4 {[%clk 0:02:59]}  e5 {[%clk 0:02:59]} 3. dxe5 {[%clk 0:02:59]}  Ne4 {[%clk 0:02:59]} 4. Nf3 {[%clk 0:02:56]}  Nc6 {[%clk 0:02:59]} 5. e3 {[%clk 0:02:54]}  d6 {[%clk 0:02:58]} 6. Qc2 {[%clk 0:01:23]}  d5 {[%clk 0:02:48]} 7. cxd5 {[%clk 0:01:19]}  Qxd5 {[%clk 0:02:48]} 8. Nc3 {[%clk 0:01:16]}  Nxc3 {[%clk 0:02:48]} 9. bxc3 {[%clk 0:01:15]}  Nxe5 {[%clk 0:02:47]} 10. Be2 {[%clk 0:01:13]}  Bg4 {[%clk 0:02:40]} 11. Nxe5 {[%clk 0:00:56]}  Bxe2 {[%clk 0:02:39]} 12. Kxe2 {[%clk 0:00:55]}  Qxe5 {[%clk 0:02:38]} 13. Rb1 {[%clk 0:00:54]}  O-O-O {[%clk 0:02:33]} 14. Qb3 {[%clk 0:00:46]}  Qe4 {[%clk 0:02:25]} 15. c4 {[%clk 0:00:20]}  Bc5 {[%clk 0:02:15]} 16. f3 {[%clk 0:00:20]}  Qc6 {[%clk 0:02:06]} 17. Qb5 {[%clk 0:00:20]}  Qb6 {[%clk 0:01:45]} 18. a4 {[%clk 0:00:13]}  Rhe8 {[%clk 0:01:42]} 19. Rb3 {[%clk 0:00:13]}  a6 {[%clk 0:01:38]} 20. Qxb6 {[%clk 0:00:13]}  Bxb6 {[%clk 0:01:38]} 21. Rd1 {[%clk 0:00:13]}  Rxd1 {[%clk 0:01:37]} 22. Kxd1 {[%clk 0:00:14]}  Kd7 {[%clk 0:01:36]} 23. Bd2 {[%clk 0:00:13]}  Kc6 {[%clk 0:01:36]} 24. a5 {[%clk 0:00:13]}  Bc5 {[%clk 0:01:32]} 25. Ke2 {[%clk 0:00:13]}  f5 {[%clk 0:01:31]} 26. h3 {[%clk 0:00:13]}  h5 {[%clk 0:01:27]} 27. Kd3 {[%clk 0:00:13]}  g6 {[%clk 0:01:28]} 28. e4 {[%clk 0:00:13]}  Rd8+ {[%clk 0:01:26]} 29. Ke2 {[%clk 0:00:13]}  fxe4 {[%clk 0:01:26]} 30. fxe4 {[%clk 0:00:14]}  Rd4 {[%clk 0:01:26]} 31. Rf3 {[%clk 0:00:10]}  Rxe4+ {[%clk 0:01:26]} 32. Kd3 {[%clk 0:00:10]}  Re6 {[%clk 0:01:26]} 33. Rf7 {[%clk 0:00:10]}  Be7 {[%clk 0:01:24]} 34. Bf4 {[%clk 0:00:10]}  Bd6 {[%clk 0:01:19]} 35. Be3 {[%clk 0:00:09]}  Be5 {[%clk 0:01:14]} 36. g4 {[%clk 0:00:08]}  hxg4 {[%clk 0:01:13]} 37. hxg4 {[%clk 0:00:09]}  Rf6 {[%clk 0:01:11]} 38. Rh7 {[%clk 0:00:08]}  Rd6+ {[%clk 0:01:11]} 39. Ke4 {[%clk 0:00:08]}  Bc3 {[%clk 0:01:11]} 40. g5 {[%clk 0:00:08]}  Bxa5 {[%clk 0:01:10]} 41. Rh6 {[%clk 0:00:08]}  Re6+ {[%clk 0:01:09]} 42. Kd3 {[%clk 0:00:08]}  Bb4 {[%clk 0:01:07]} 43. Bd4 {[%clk 0:00:09]}  Rd6 {[%clk 0:00:58]} 44. Ke4 {[%clk 0:00:08]}  Bd2 {[%clk 0:00:58]} 45. Bf6 {[%clk 0:00:08]}  a5 {[%clk 0:00:56]} 46. Rxg6 {[%clk 0:00:08]}  a4 {[%clk 0:00:56]} 47. Rg8 {[%clk 0:00:07]}  Kc5 {[%clk 0:00:52]} 48. Ra8 {[%clk 0:00:07]}  Ra6 {[%clk 0:00:50]} 49. Rxa6 {[%clk 0:00:07]}  bxa6 {[%clk 0:00:51]} 50. g6 {[%clk 0:00:07]}  Bh6 {[%clk 0:00:51]} 51. Kd3 {[%clk 0:00:07]}  Kb4 {[%clk 0:00:51]} 52. g7 {[%clk 0:00:08]}  Bxg7 {[%clk 0:00:50]} 53. Bxg7 {[%clk 0:00:08]}  Kb3 {[%clk 0:00:50]} 54. c5 {[%clk 0:00:08]}  c6 {[%clk 0:00:49]} 55. Ke4 {[%clk 0:00:08]}  a3 {[%clk 0:00:49]} 56. Kf5 {[%clk 0:00:08]}  Kc4 {[%clk 0:00:48]} 57. Ke6 {[%clk 0:00:08]}  Kxc5 {[%clk 0:00:48]} 58. Kd7 {[%clk 0:00:08]}  a5 {[%clk 0:00:47]} 59. Kc7 {[%clk 0:00:09]}  a4 {[%clk 0:00:47]} 60. Kb7 {[%clk 0:00:09]}  Kb5 {[%clk 0:00:47]} 61. Kc7 {[%clk 0:00:08]}  c5 {[%clk 0:00:48]} 62. Kd6 {[%clk 0:00:09]}  Kc4 {[%clk 0:00:47]} 63. Kc6 {[%clk 0:00:09]}  a2 {[%clk 0:00:47]} 64. Kb6 {[%clk 0:00:09]}  Kb4 {[%clk 0:00:48]} 65. Kc6 {[%clk 0:00:09]}  a3 {[%clk 0:00:49]} 66. Kd5 {[%clk 0:00:09]}  c4 {[%clk 0:00:47]} 67. Ke4 {[%clk 0:00:10]}  Kb3 {[%clk 0:00:47]} 68. Ba1 {[%clk 0:00:09]}  c3 {[%clk 0:00:47]} 69. Kd3 {[%clk 0:00:09]}  c2 {[%clk 0:00:46]} 70. Kd2 {[%clk 0:00:09]}  c1=Q+ {[%clk 0:00:45]} 71. Kxc1 {[%clk 0:00:10]}  Kc4 {[%clk 0:00:45]} 72. Bh8 {[%clk 0:00:10]}  Kb3 {[%clk 0:00:45]} 73. Ba1 {[%clk 0:00:11]}  Kc4 {[%clk 0:00:46]} 74. Bh8 {[%clk 0:00:11]}  Kb3 {[%clk 0:00:46]} 75. Ba1 {[%clk 0:00:12]} 1/2-1/2


[Site "https://www.chess.com"]